bitfinex/quotes_ETHUSD_20250519
["timestamp","ask_amount","ask_price","bid_price","bid_amount"]
[1747613498717,4.02026212,2487.4,2487.3,12.6578]
[1747613499226,4.02131643,2486.8,2486.5,0.7646]
[1747613499525,8.0,2487.9,2486.7,11.87]
[1747613499742,4.01984571,2487.7,2486.8,1.9516]
[1747613499890,4.01993889,2487.6,2486.8,1.9516]
[1747613500209,4.02058132,2487.3,2486.8,1.9516]
[1747613500386,8.0,2488.3,2486.9,0.55]
[1747613500730,4.02086464,2487.1,2487.0,11.873]
[1747613500884,4.0210704,2486.9,2486.8,0.7646]
[1747613501294,4.02074139,2487.2,2486.8,12.6376]
[1747613501493,11.886,2487.3,2486.4,18.1201]
[1747613501691,4.02203335,2486.4,2485.6,11.873]
[1747613501916,12.436,2487.3,2485.8,0.796]
[1747613501917,11.886,2487.3,2485.8,0.796]
[1747613502125,4.02154224,2486.7,2485.8,8.0]
[1747613502412,0.33591712,2486.6,2486.0,0.55]
[1747613502628,0.33591712,2486.6,2486.2,9.346]
[1747613502792,0.33591712,2486.6,2486.5,0.796]
[1747613503112,0.33591712,2486.6,2486.5,1.346]
[1747613503413,8.0,2487.9,2486.7,0.796]
[1747613503612,8.0,2487.9,2486.9,0.55]
[1747613503815,4.0204297,2487.3,2486.9,0.55]
[1747613504000,4.020625,2487.2,2486.9,0.55]
[1747613504208,4.02007882,2487.6,2487.1,0.55]
[1747613504711,4.02045973,2487.3,2487.2,11.913]
[1747613505085,4.02074705,2487.1,2487.0,1.2151]
[1747613506413,4.01890274,2488.3,2487.0,1.2151]
[1747613506614,12.22023973,2489.0,2486.4,1.1973]
[1747613506814,12.22023973,2489.0,2484.5,0.3]
[1747613506815,1.2379,2488.0,2486.2,1.1973]
[1747613507022,4.02204078,2486.3,2486.2,1.1973]
[1747613507523,4.02268796,2485.9,2485.8,0.005]
[1747613508485,24.13068796,2485.9,2485.8,0.005]
[1747613508929,4.02268796,2485.9,2485.8,0.005]
[1747613509419,4.02268796,2485.9,2485.8,1e-08]
[1747613509598,5.78208796,2485.9,2485.8,1e-08]
[1747613510019,5.23208796,2485.9,2485.8,1e-08]
[1747613510206,4.02268796,2485.9,2485.8,1e-08]
[1747613511202,16.14268796,2485.9,2485.8,1e-08]
[1747613511631,4.02268796,2485.9,2485.8,1e-08]
[1747613511835,12.02268796,2485.9,2485.8,1e-08]
[1747613512134,5.18669272,2484.6,2484.5,0.2]
[1747613512319,25.47969272,2484.6,2484.5,0.2]
[1747613512837,25.77544749,2484.6,2484.5,0.2]
[1747613513131,4.02706185,2483.2,2483.1,0.25370502]
[1747613513323,4.02547028,2484.2,2483.1,0.25370502]
[1747613513324,12.318,2483.7,2483.1,1.47560502]
[1747613513625,4.02706185,2483.2,2483.1,1.47560502]
[1747613514211,4.02706185,2483.2,2483.1,0.25370502]
[1747613514407,24.39606185,2483.2,2483.1,0.25370502]
[1747613515026,4.02706185,2483.2,2483.1,0.25370502]
[1747613516113,4.02706185,2483.2,2483.1,1.42950502]
[1747613516311,4.02469236,2484.7,2483.2,0.55]
[1747613516511,4.02555846,2484.2,2483.5,1.1758]
[1747613516718,4.02641327,2483.6,2483.5,1.1758]
[1747613517050,4.02706185,2483.2,2483.1,0.25370502]
[1747613517334,4.04314432,2485.0,2483.4,0.55]
[1747613517546,4.02673753,2483.4,2483.3,1.1598]
[1747613517921,4.02673753,2483.4,2483.1,0.25370502]
[1747613518235,12.02706185,2483.2,2483.1,0.25370502]
[1747613518407,4.02835965,2482.4,2482.3,1.224]
[1747613519628,16.51035965,2482.4,2482.3,1.224]
[1747613519930,4.02835965,2482.4,2482.3,1.774]
[1747613520105,4.02835965,2482.4,2482.3,1.224]
[1747613521101,4.02835965,2482.4,2482.3,1.774]
[1747613521538,4.02803503,2482.7,2482.4,0.55]
[1747613521834,4.02819738,2482.5,2482.4,0.55]
[1747613522139,4.02819738,2482.5,2482.3,1.224]
[1747613522140,4.02835965,2482.4,2482.3,1.224]
[1747613522359,4.02835965,2482.4,2481.0,17.88687769]
[1747613522360,4.03047035,2481.1,2481.0,17.382]
[1747613522674,12.443,2481.6,2481.0,19.2226813]
[1747613522958,0.02015,2481.4,2481.2,1.1689]
[1747613523127,0.02015,2481.4,2481.3,1.7189]
[1747613523461,4.02873157,2482.2,2481.6,1.2247]
[1747613523664,4.02577966,2484.0,2481.9,1.2247]
[1747613523665,4.0277052,2482.9,2481.9,1.2247]
[1747613523826,1.2156,2484.1,2482.3,1.2247]
[1747613523827,4.02789191,2482.7,2482.3,1.2247]
[1747613524021,4.02819738,2482.5,2482.4,0.55]
[1747613524221,4.02835965,2482.4,2482.3,1.7747]
[1747613524471,4.02835965,2482.4,2482.3,1.2247]
[1747613524625,4.02835965,2482.4,2482.3,1.7747]
[1747613524820,4.02835965,2482.4,2482.3,1.2247]
[1747613525061,4.02835965,2482.4,2482.3,1.7747]
[1747613525560,4.02759817,2482.9,2482.4,0.55]
[1747613525863,1.2036,2484.1,2482.4,0.55]
[1747613526018,12.497,2484.0,2482.6,0.55]
[1747613526219,4.02771064,2482.8,2482.7,1.2238]
[1747613526856,4.02921358,2481.9,2481.8,1.236]
[1747613527627,4.02852807,2482.3,2481.8,1.236]
[1747613527877,4.02862012,2482.3,2482.0,1.169]
[1747613528186,4.02773105,2482.8,2482.0,25.387]
[1747613528460,4.02777035,2482.8,2482.2,9.169]
[1747613528669,4.02651306,2483.6,2482.3,12.265]
[1747613528828,1.1915,2484.6,2482.8,1.1931]
[1747613529031,4.02621674,2483.8,2483.2,1.1931]
[1747613529382,12.507,2484.5,2483.5,1.1931]
[1747613529383,4.02511672,2484.4,2483.5,1.1931]
[1747613529529,4.02605407,2483.9,2483.5,1.1931]
[1747613529728,16.54106971,2484.5,2483.5,1.1931]
[1747613530036,4.02589615,2484.0,2483.6,0.91931]
[1747613530245,4.02579442,2484.0,2483.6,0.91931]
[1747613530446,4.02532465,2484.3,2483.7,1.25365188]
[1747613530623,4.02464177,2484.7,2483.9,1.2303]
[1747613530823,4.02474906,2484.7,2484.1,1.2303]
[1747613531066,4.02495011,2484.6,2484.2,12.264]
[1747613531262,12.487,2485.3,2484.1,1.2303]
[1747613531427,4.02498498,2484.5,2484.3,12.264]
[1747613531634,12.487,2485.3,2484.4,1.2303]
[1747613531635,4.02375462,2485.3,2484.4,1.2303]
[1747613531830,16.50136434,2486.1,2484.7,1.2002]
[1747613532080,4.02377765,2485.3,2484.7,1.2002]
[1747613532374,4.02358801,2485.4,2484.8,12.264]
[1747613532530,4.02171727,2486.5,2484.8,12.264]
[1747613532531,4.02430681,2484.9,2484.8,12.264]
[1747613532725,4.02446877,2484.8,2484.7,1.2002]
[1747613532947,4.02527875,2484.3,2484.2,13.4111]
[1747613533133,4.02527875,2484.3,2484.2,14.844513]
[1747613533648,4.02527875,2484.3,2484.2,1.1471]
[1747613533851,4.02513686,2484.4,2484.2,1.1471]
[1747613534065,4.02349722,2485.4,2484.3,12.261]
[1747613534275,4.02425523,2485.0,2484.3,12.261]
[1747613534478,4.02457303,2484.8,2484.3,12.261]
[1747613534644,4.02457303,2484.8,2484.4,1.34081]
[1747613534847,4.0247499,2484.7,2484.4,1.34081]
[1747613535190,4.02481872,2484.6,2484.4,1.34081]
[1747613535461,12.423,2485.4,2484.5,12.261]
[1747613535674,4.02382102,2485.2,2484.5,12.261]
[1747613535846,4.02457211,2484.8,2484.6,1.360181]
[1747613536040,4.02463074,2484.7,2484.5,12.261]
[1747613536353,4.02527875,2484.3,2484.2,1.1471]
[1747613536530,4.02527875,2484.3,2484.2,13.4071]
[1747613537168,8.0,2485.2,2484.2,13.4071]
[1747613537373,4.02592696,2483.9,2483.8,1.1816]
[1747613537768,4.02560852,2484.1,2483.8,2.52576]
[1747613537934,4.0240143,2485.1,2483.8,2.52576]
[1747613537935,12.384,2484.8,2483.8,2.52576]
[1747613538131,8.0,2485.1,2483.8,2.52576]
[1747613538334,4.02514727,2484.4,2483.9,0.04024691]
[1747613538534,4.02529982,2484.3,2483.8,2.52576]
[1747613538769,12.379,2485.0,2483.9,1.478576]
[1747613539066,4.02311042,2485.7,2484.1,5.28277806]
[1747613539266,4.02416469,2485.0,2484.1,1.2573]
[1747613539437,12.347,2485.5,2484.1,1.2573]
[1747613539632,4.02494788,2484.6,2484.1,1.2573]
[1747613539835,4.0248427,2484.6,2484.2,0.92573]
[1747613540132,12.31,2485.3,2484.2,8.92573]
[1747613540359,12.31,2485.3,2484.2,0.92573]
[1747613540559,4.02505294,2484.5,2484.1,1.2573]
[1747613540762,4.02382102,2485.2,2484.1,1.2573]
[1747613540763,4.02511672,2484.4,2484.3,12.26]
[1747613541162,12.302,2485.0,2484.3,12.26]
[1747613541335,4.02478504,2484.7,2484.3,12.26]
[1747613541672,4.02223881,2486.2,2484.5,9.1523]
[1747613541871,4.0225653,2486.0,2484.6,2.65323]
[1747613542077,4.02301162,2485.7,2484.6,2.65323]
[1747613542371,4.02463074,2484.7,2484.6,12.292]
[1747613542574,4.02425812,2485.0,2484.6,12.292]
[1747613542868,4.02284978,2485.8,2484.6,12.292]
[1747613543073,4.02400443,2485.1,2484.6,12.292]
[1747613543273,4.0236058,2485.4,2484.6,12.292]
[1747613543437,4.02369312,2485.3,2484.7,1.74692384]
[1747613543643,4.02369312,2485.3,2484.8,1.2219]
[1747613543840,4.02293933,2485.8,2484.8,1.2219]
[1747613543841,4.02204078,2486.3,2484.9,1.2219]
[1747613544039,4.02379141,2485.3,2484.9,1.2219]
[1747613544240,8.0,2486.3,2484.9,1.2219]
[1747613544441,4.02414486,2485.0,2484.9,1.2219]
[1747613544755,4.02414486,2485.0,2484.9,13.5139]
[1747613544969,12.236,2485.9,2484.9,14.86529]
[1747613545139,4.023614,2485.4,2484.9,14.86529]
[1747613546366,4.02350412,2485.4,2484.9,14.86529]
[1747613546548,4.0238337,2485.2,2484.9,2.57329]
[1747613546758,4.02301162,2485.7,2484.9,1.2219]
[1747613546759,4.02414486,2485.0,2484.9,1.2219]
[1747613546956,4.02262367,2486.0,2484.9,13.5129]
[1747613547169,12.32166679,2486.3,2484.9,13.5129]
[1747613547170,4.02236434,2486.1,2485.0,1.35129]
[1747613547477,4.02367437,2485.3,2485.1,12.291]
[1747613547679,1.2125,2486.4,2485.2,12.291]
[1747613547881,4.02216358,2486.3,2485.5,1.2377]
[1747613548041,4.02250936,2486.1,2485.5,5.26094677]
[1747613548385,4.02215541,2486.3,2485.7,5.26056551]
[1747613548542,4.0212321,2486.8,2485.7,1.2377]
[1747613548741,0.29571676,2487.1,2485.7,1.2377]
[1747613548742,4.02284978,2485.8,2485.7,1.2377]
[1747613549177,4.02284978,2485.8,2485.7,13.5277]
[1747613549877,4.0222602,2486.2,2485.7,13.5277]
[1747613550052,4.0207797,2487.1,2485.8,5.37549193]
[1747613550053,4.02130616,2486.8,2485.8,5.37549193]
[1747613550372,4.02090872,2487.0,2485.8,1.35277]
[1747613550577,4.02284978,2485.8,2485.7,1.2377]
[1747613550883,4.02349722,2485.4,2485.3,29.667]
[1747613551093,4.02339165,2485.5,2485.3,29.667]
[1747613551373,4.02333534,2485.5,2485.4,12.288]
[1747613551586,4.02330796,2485.6,2485.4,12.288]
[1747613551754,12.122,2486.1,2485.4,15.369]
[1747613552176,4.02257822,2486.0,2485.4,19.3923421]
[1747613552356,4.02308979,2485.7,2485.4,12.288]
[1747613552565,4.02333534,2485.5,2485.4,12.288]
[1747613552775,16.14439115,2486.1,2485.4,12.288]
[1747613552959,4.02333534,2485.5,2485.4,12.288]
[1747613553280,4.02319468,2485.6,2484.9,12.288]
[1747613553479,4.02414486,2485.0,2484.9,12.288]
[1747613553873,4.02400362,2485.1,2484.9,12.288]
[1747613554071,8.0,2486.1,2484.9,13.64372]
[1747613554269,1.1953,2486.5,2484.9,13.64372]
[1747613554469,1.1953,2486.9,2485.1,1.2692]
[1747613554673,4.021564,2486.6,2486.0,4.02242286]
[1747613554855,4.02173522,2486.5,2486.1,12.288]
[1747613555052,4.02252422,2486.1,2485.9,18.6422]
[1747613555250,4.02244802,2486.1,2485.9,17.373]
[1747613555485,12.099,2487.0,2485.9,17.373]
[1747613555486,4.02252614,2486.0,2485.9,17.373]
[1747613556184,4.02349722,2485.4,2485.3,12.288]
[1747613556353,4.02337737,2485.5,2485.3,12.288]
[1747613556553,0.3073486,2486.3,2485.3,13.63496]
[1747613556752,12.166,2486.5,2485.3,13.63496]
[1747613556953,1.1707,2488.0,2485.5,1.2416]
[1747613557183,12.242,2487.9,2485.7,1.2416]
[1747613557384,4.0220648,2486.3,2485.8,12.288]
[1747613557685,12.225,2487.2,2486.2,4.02204185]
[1747613557884,4.02084706,2487.1,2486.4,4.02187902]
[1747613558071,4.02084706,2487.1,2486.3,17.372]
[1747613558072,4.02145734,2486.7,2486.5,12.288]
[1747613558260,4.02155553,2486.6,2486.5,12.288]
[1747613558465,4.02145905,2486.7,2486.5,12.288]
[1747613558685,4.02074705,2487.1,2486.5,12.288]
[1747613559065,4.02074705,2487.1,2480.9,7.03200937]
[1747613559066,4.02446877,2484.8,2484.7,1.1535]
[1747613559385,4.02479272,2484.6,2484.5,0.30807894]
[1747613559688,5.3969,2485.5,2483.5,1.1535]
[1747613559895,4.02657539,2483.5,2483.4,0.30807894]
[1747613560098,12.02657539,2483.5,2483.4,0.30807894]
[1747613560270,24.49657539,2483.5,2483.4,0.30807894]
[1747613560594,4.02495471,2484.5,2483.4,0.30807894]
[1747613560794,4.02414486,2485.0,2483.4,0.30807894]
[1747613560996,4.02577616,2484.0,2483.4,0.30807894]
[1747613561199,4.02657539,2483.5,2483.4,0.30807894]
[1747613562101,13.27637539,2483.5,2483.4,0.30807894]
[1747613562399,13.27637539,2483.5,2483.4,0.03850986]
[1747613562597,38.70937539,2483.5,2483.4,0.03850986]
[1747613562900,5.27637539,2483.5,2483.4,0.03850986]
[1747613563099,18.00337539,2483.5,2483.4,0.03850986]
[1747613563268,4.02689968,2483.3,2482.1,1.1972]
[1747613563468,1.8577652,2484.1,2482.4,1.2202]
[1747613563775,0.6361652,2484.1,2483.0,1.2202]
[1747613564101,0.6361652,2484.1,2483.1,1.2202]
[1747613564279,4.02706185,2483.2,2483.1,1.2202]
[1747613564599,4.02933354,2481.8,2481.7,1.206]
[1747613565516,12.799,2481.8,2481.0,12.725]
[1747613565716,4.03047035,2481.1,2481.0,12.725]
[1747613565915,8.0,2481.9,2480.5,17.38]
[1747613565916,4.03068058,2481.0,2480.6,1.1829]
[1747613566200,8.0,2481.9,2480.6,1.1829]
[1747613566399,4.0293661,2481.8,2480.9,8.0]
[1747613566798,4.02891903,2482.1,2480.8,1.02481297]
[1747613566999,8.0,2482.3,2481.0,1.2305]
[1747613567299,4.02830807,2482.5,2481.0,1.2305]
[1747613567500,4.02954795,2481.7,2481.0,1.2305]
[1747613567681,4.02988934,2481.5,2481.0,1.2305]
[1747613567878,4.03019893,2481.3,2481.0,1.2305]
[1747613568080,4.02852193,2482.3,2481.1,0.26058813]
[1747613568276,12.795,2481.8,2481.0,1.2305]
[1747613568477,4.03047035,2481.1,2481.0,1.2305]
[1747613568678,12.795,2481.8,2481.0,1.2305]
[1747613568882,4.03112024,2480.7,2480.6,1.1663]
[1747613569092,4.03177035,2480.3,2480.2,1.1663]
[1747613569293,4.03165943,2480.4,2480.2,1.1663]
[1747613569501,4.02829774,2482.5,2480.2,1.1663]
[1747613569702,4.02998307,2481.4,2480.2,1.1663]
[1747613569895,4.03107074,2480.8,2480.2,1.1663]
[1747613570206,12.81,2481.0,2480.2,1.1663]
[1747613570501,12.785,2481.2,2480.2,1.1663]
[1747613570701,8.0,2481.7,2480.2,1.1663]
[1747613570907,5.21332417,2481.9,2480.2,1.1663]
[1747613571131,4.02960019,2481.7,2480.5,1.1969]
[1747613571310,1.1821,2482.4,2481.0,1.1969]
[1747613571609,0.33591712,2482.3,2481.6,1.1969]
[1747613571782,4.02927372,2481.9,2481.6,1.1969]
[1747613571981,4.02949591,2481.7,2481.6,1.1969]
[1747613572284,0.33591712,2481.7,2481.6,1.1969]
[1747613572889,0.33591712,2481.7,2481.6,5.74923451]
[1747613573599,0.33591712,2481.7,2481.6,1.71957623]
[1747613573774,4.02798318,2482.7,2481.9,8.0]
[1747613573976,16.76633909,2483.1,2482.0,30.126]
[1747613574177,4.02821554,2482.5,2482.1,3.41551096]
[1747613574415,4.02806715,2482.6,2482.1,3.41551096]
[1747613574579,4.02806715,2482.6,2482.2,1.2299]
[1747613574781,4.02829372,2482.5,2482.2,1.2299]
[1747613574982,4.02852193,2482.3,2482.1,3.41551096]
[1747613575183,1.2665,2482.7,2481.4,9.2299]
[1747613575395,12.736,2482.6,2481.4,9.2299]
[1747613575595,1.2665,2483.1,2481.7,1.1969]
[1747613575907,4.02817145,2482.6,2481.9,4.0291648]
[1747613576216,12.716,2482.8,2482.0,4.43188809]
[1747613576388,4.02815473,2482.6,2482.1,12.734]
[1747613576722,4.02765642,2482.9,2482.2,1.1969]
[1747613576923,1.2526,2485.7,2484.3,1.1969]
[1747613577221,0.33591712,2485.6,2485.4,4.02346863]
[1747613577384,0.33591712,2485.6,2484.8,4.02437304]
[1747613577385,0.33591712,2485.6,2485.5,16.79756505]
[1747613577585,5.28167805,2486.4,2485.5,16.79756505]
[1747613577586,1.25973765,2486.4,2485.5,13.55744602]
[1747613577927,1.25973765,2486.4,2485.7,1.1916]
[1747613578113,1.25973765,2486.4,2485.9,4.02258197]
[1747613578309,1.25973765,2486.4,2485.7,5.21456081]
[1747613578647,1.25973765,2486.4,2485.7,1.1916]
[1747613578648,4.02204078,2486.3,2485.7,1.1916]
[1747613578921,4.02331035,2485.6,2485.3,1.1628]
[1747613579111,4.0235848,2485.4,2485.1,17.392]
[1747613579306,4.02236434,2486.1,2484.9,12.729]
[1747613579516,4.02361627,2485.4,2484.9,12.729]
[1747613579722,4.02310583,2485.7,2484.9,18.54480098]
[1747613579911,4.02310583,2485.7,2485.0,4.02413704]
[1747613580225,12.769,2486.0,2485.2,4.0236875]
[1747613580386,4.02236434,2486.1,2485.0,4.02409132]
[1747613580593,4.02334116,2485.5,2484.9,14.52063155]
[1747613580812,12.753,2486.0,2484.9,12.729]
[1747613581119,4.02350408,2485.4,2484.9,12.729]
[1747613581321,4.02366283,2485.3,2484.9,12.729]
[1747613581625,4.02366457,2485.3,2484.9,12.729]
[1747613581923,4.02343301,2485.5,2484.9,14.11818]
[1747613582099,4.02321753,2485.6,2485.0,0.04023311]
[1747613582295,16.7641175,2485.7,2484.9,14.11818]
[1747613582296,12.741,2485.7,2484.9,14.11818]
[1747613582502,4.02331093,2485.6,2484.9,12.729]
[1747613582711,4.02414486,2485.0,2484.9,12.729]
[1747613582929,4.02382102,2485.2,2484.4,1.2655]
[1747613583130,4.02560283,2484.1,2484.0,1.2655]
[1747613583449,16.74635898,2484.3,2483.6,13.9915]
[1747613583644,4.02648669,2483.6,2483.1,1.2655]
[1747613583792,1.1777,2484.3,2483.1,1.2655]
[1747613583993,4.02657539,2483.5,2483.1,1.2655]
[1747613584607,4.02646217,2483.6,2483.1,1.2655]
[1747613584835,4.02560695,2484.1,2483.3,4.02678779]
[1747613585134,4.02524849,2484.4,2483.1,1.2655]
[1747613585332,4.02539025,2484.3,2483.1,5.29265603]
[1747613585628,16.71992961,2484.6,2484.0,1.2399]
[1747613585832,4.02519742,2484.4,2484.1,12.7662482]
[1747613586027,4.0250077,2484.5,2484.1,12.726]
[1747613586229,4.02544078,2484.2,2484.1,12.726]
[1747613586429,4.02608905,2483.8,2483.6,1.1641]
[1747613586637,4.02625115,2483.7,2483.6,1.1641]
[1747613586818,4.02527875,2484.3,2483.3,12.726]
[1747613586995,4.02607243,2483.9,2483.3,12.726]
[1747613587337,4.02625607,2483.7,2483.4,0.05026728]
[1747613587531,4.02625607,2483.7,2483.4,0.01000803]
[1747613588007,12.673,2484.1,2483.4,0.01000803]
[1747613588212,4.02625518,2483.7,2483.4,0.01000803]
[1747613588823,4.02592778,2483.9,2483.4,1.40001883]
[1747613589027,1.1815,2485.0,2483.5,0.04025842]
[1747613589344,4.02657539,2483.5,2483.4,0.01000803]
[1747613591195,4.02821262,2482.5,2482.0,0.40291648]
[1747613591377,4.02939963,2481.8,2481.7,12.56]
[1747613591654,4.02933354,2481.8,2481.7,12.56]
[1747613591813,4.02933354,2481.8,2480.2,10.22]
[1747613591814,4.02998307,2481.4,2481.3,12.56]
[1747613592014,4.02901728,2482.0,2481.3,13.98000064]
[1747613592218,12.562,2482.4,2481.4,4.02984586]
[1747613592420,4.02895308,2482.1,2481.5,4.07001071]
[1747613592622,4.0287233,2482.2,2481.6,1.2321]
[1747613592822,4.02863974,2482.3,2481.7,4.02947432]
[1747613593018,4.0276443,2482.9,2481.8,0.56644107]
[1747613593259,12.533,2482.8,2481.8,0.52615743]
[1747613593444,4.02913658,2482.0,2481.6,1.2321]
[1747613593642,4.0288354,2482.2,2481.6,5.26166264]
[1747613593859,4.02871658,2482.2,2481.6,5.26170217]
[1747613594164,4.02871658,2482.2,2481.7,4.02948875]
[1747613594361,4.02836649,2482.4,2481.8,0.52615887]
[1747613594561,4.0282361,2482.5,2481.7,4.02936378]
[1747613594765,4.02790624,2482.7,2481.8,4.0695632]
[1747613594962,4.02855976,2482.3,2481.7,4.02949591]
[1747613595151,4.0284308,2482.4,2481.8,4.02930507]
[1747613595338,4.0284308,2482.4,2481.9,0.8058801]
[1747613595540,4.02855002,2482.3,2481.9,0.8058801]
[1747613595751,12.476,2482.9,2481.6,1.2321]
[1747613595936,4.02830933,2482.5,2481.9,4.02911445]
[1747613596136,4.02863222,2482.3,2481.7,16.59243451]
[1747613596342,12.476,2482.9,2481.6,5.26164278]
[1747613596540,4.02787288,2482.7,2481.6,1.2321]
[1747613596722,8.0,2483.1,2481.7,12.60428753]
[1747613596927,4.02901681,2482.0,2481.8,1.38363875]
[1747613597224,12.436,2482.7,2481.6,1.2321]
[1747613597458,4.02982067,2481.5,2481.4,12.564]
[1747613597994,8.0,2482.6,2481.4,12.564]
[1747613598197,4.02965759,2481.7,2481.4,12.564]
[1747613598407,4.0296983,2481.6,2481.4,12.564]
[1747613598567,4.02982067,2481.5,2481.4,12.564]
[1747613598767,4.02976474,2481.6,2481.4,12.564]
[1747613598992,4.02982067,2481.5,2481.4,12.564]
[1747613599195,12.02852193,2482.3,2481.1,1.1904]
[1747613599412,4.03047035,2481.1,2481.0,12.566]
[1747613599568,1.2658,2481.8,2480.9,29.947]
[1747613599569,4.0306328,2481.0,2480.9,29.947]
[1747613599965,4.03000907,2481.4,2480.7,1.2465]
[1747613600183,4.03095775,2480.8,2480.7,1.2465]
[1747613600375,4.03095775,2480.8,2480.7,13.8125]
[1747613600601,4.03095775,2480.8,2480.7,12.566]
[1747613600902,4.0313815,2480.6,2480.4,17.39]
[1747613601224,4.03116487,2480.7,2480.5,12.566]
[1747613601406,4.02998307,2481.4,2480.2,1.1672]
[1747613601724,4.02998307,2481.4,2480.3,12.566]
[1747613601897,4.03047035,2481.1,2480.2,1.1672]
[1747613602203,4.03014548,2481.3,2480.2,1.1672]
[1747613602204,4.03177035,2480.3,2480.2,1.1672]
[1747613602421,5.30377118,2479.5,2479.4,0.40790644]
[1747613602711,25.79877118,2479.5,2479.4,0.40790644]
[1747613602908,25.82577118,2479.5,2479.4,0.40790644]
[1747613603080,5.2458101,2478.8,2478.7,0.79928681]
[1747613603263,13.2458101,2478.8,2478.7,0.79928681]
[1747613603467,13.2458101,2478.8,2476.7,1.2703]
[1747613603468,12.03437285,2478.7,2476.7,1.2703]
[1747613603740,12.03583824,2477.8,2476.9,0.41141553]
[1747613604019,4.0371417,2477.0,2476.9,0.41141553]
[1747613604213,17.6941417,2477.0,2476.9,0.41141553]
[1747613604513,17.7401417,2477.0,2476.9,0.41141553]
[1747613604711,17.7401417,2477.0,2476.9,0.36141553]
[1747613605193,0.884,2477.0,2476.9,0.36141553]
[1747613605396,17.7821417,2477.0,2476.9,0.36141553]
[1747613605570,4.03828292,2476.3,2476.2,0.82293934]
[1747613605760,5.13852478,2475.6,2475.5,6.40526579]
[1747613605967,26.47152478,2475.6,2475.5,6.40526579]
[1747613606161,18.46952478,2475.6,2475.5,6.40526579]
[1747613606363,27.01952478,2475.6,2475.5,1.05912128]
[1747613606576,27.01952478,2475.6,2474.5,7.60217229]
[1747613606577,12.04024079,2475.1,2474.5,7.60217229]
[1747613606793,1.2352,2475.1,2475.0,6.98200937]
[1747613607104,14.9382,2475.1,2473.1,1.2194]
[1747613607307,0.3027185,2475.6,2474.0,4.04202351]
[1747613607308,13.749,2475.4,2474.0,4.04202351]
[1747613607510,4.04024367,2475.1,2474.1,0.04041318]
[1747613607661,13.749,2475.4,2473.6,4.04261278]
[1747613607862,1.2666,2475.7,2473.2,14.44914094]
[1747613608198,1.2666,2475.7,2473.3,9.2473]
[1747613608403,4.04173116,2474.2,2473.4,2.36964409]
[1747613608575,4.04246045,2473.8,2473.4,2.36964409]
[1747613608794,13.899,2475.1,2473.4,2.36964409]
[1747613609113,13.9,2475.5,2473.6,4.04269081]
[1747613609405,21.44517109,2476.4,2474.2,4.04170656]
[1747613609406,13.919,2475.6,2474.2,4.04170656]
[1747613609569,13.919,2475.6,2474.3,0.40417066]
[1747613609770,17.95849879,2475.6,2473.5,4.04284141]
[1747613610103,1.2666,2475.7,2473.5,8.0]
[1747613610304,13.921,2475.6,2473.9,8.0]
[1747613610462,1.2654,2476.4,2474.1,9.2473]
[1747613610667,1.2654,2477.1,2475.6,1.2473]
[1747613610979,1.2654,2477.6,2475.6,22.8863]
[1747613611178,13.953,2477.5,2475.8,4.03909847]
[1747613611382,0.4701007,2477.7,2475.8,1.2473]
[1747613611587,0.4701007,2477.7,2476.1,1.2473]
[1747613611886,0.4701007,2477.7,2476.6,8.0]
[1747613612092,0.4701007,2477.7,2476.7,1.20379568]
[1747613612275,4.03663978,2477.4,2476.7,1.20379568]
[1747613612596,4.0348612,2478.4,2476.8,4.03744416]
[1747613612803,4.03518682,2478.2,2476.6,17.428]
[1747613612970,8.33591712,2478.1,2476.6,17.428]
[1747613613166,0.33591712,2478.0,2476.6,20.97299721]
[1747613613367,4.03673196,2477.3,2476.6,20.97299721]
[1747613613911,4.03590474,2477.8,2476.6,20.97299721]
[1747613614066,4.03609555,2477.7,2476.6,20.97299721]
[1747613614398,0.33591712,2477.6,2477.0,4.03709071]
[1747613614619,0.33591712,2477.6,2477.0,0.80745495]
[1747613614779,0.33591712,2477.6,2476.7,8.0]
[1747613614967,4.03644707,2477.5,2476.8,4.0373518]
[1747613615166,0.33591712,2477.4,2476.7,8.0]
[1747613615403,0.33591712,2477.4,2476.8,4.03735168]
[1747613615603,0.33591712,2477.4,2476.7,8.0]
[1747613615788,0.33591712,2477.3,2476.8,4.4980715]
[1747613615988,0.33591712,2477.3,2476.9,8.0]
[1747613616175,0.33591712,2477.3,2477.0,4.0371417]
[1747613616376,0.33591712,2477.3,2477.0,4.03703397]
[1747613616765,4.37259098,2477.3,2476.8,4.4980715]
[1747613617001,0.33591712,2477.3,2476.9,13.985]
[1747613617467,0.33591712,2477.3,2476.9,18.0222657]
[1747613617668,0.33591712,2477.3,2477.2,4.03681575]
[1747613617864,0.33591712,2477.3,2476.9,13.985]
[1747613618103,0.33591712,2477.3,2477.2,4.03681575]
[1747613618305,1.2654,2478.8,2477.5,8.0]
[1747613618505,0.33591712,2478.7,2477.8,1.1879]
[1747613618671,0.33591712,2478.7,2478.1,8.0]
[1747613619004,0.33591712,2478.7,2478.6,4.03453562]
[1747613619770,15.077,2480.3,2478.7,4.03437285]
[1747613619971,4.03335596,2479.4,2478.8,13.984]
[1747613620603,4.03253049,2479.9,2478.8,13.984]
[1747613620806,4.0337409,2479.1,2478.9,13.981]
[1747613621008,4.03349884,2479.3,2478.9,13.981]
[1747613621316,4.03202144,2480.2,2478.9,13.981]
[1747613621475,1.274,2480.3,2479.3,4.03325632]
[1747613621804,1.274,2480.3,2479.3,4.03329556]
[1747613621805,4.03235542,2480.0,2479.3,4.03329556]
[1747613622009,4.03243577,2479.9,2479.1,21.45769272]
[1747613622209,4.03102812,2480.8,2479.1,21.45769272]
[1747613622210,1.2387,2482.3,2479.4,4.03323384]
[1747613622386,4.03205448,2480.2,2479.4,1.1725]
[1747613622589,4.03269815,2479.8,2479.4,1.1725]
[1747613622793,4.03312087,2479.5,2479.1,17.424]
[1747613623125,1.2387,2481.0,2479.2,13.981]
[1747613623291,4.03112024,2480.7,2479.3,4.03328242]